[Event "*** Titled Tuesday Blitz"]
[Site "Chess.com"]
[Date "2021.03.30"]
[Round "6"]
[White "seorobert1971"]
[Black "ChristopherYoo"]
[Result "1/2-1/2"]
[WhiteElo "2740"]
[BlackElo "2918"]
[TimeControl "180+1"]
[EndTime "11:05:34 PDT"]
[Termination "Game drawn by repetition"]

1. Nf3 {[%clk 0:03:00.9]} 1... Nf6 {[%clk 0:02:59]} 2. d4 {[%clk 0:03:01.8]}
2... e6 {[%clk 0:02:56.5]} 3. c4 {[%clk 0:03:02.7]} 3... d5 {[%clk 0:02:55.5]}
4. Nc3 {[%clk 0:03:03.6]} 4... dxc4 {[%clk 0:02:52.6]} 5. e3 {[%clk 0:03:01.6]}
5... a6 {[%clk 0:02:52.5]} 6. Bxc4 {[%clk 0:03:01.3]} 6... b5 {[%clk 0:02:51.3]}
7. Bb3 {[%clk 0:03:01.3]} 7... Bb7 {[%clk 0:02:45.9]} 8. O-O {[%clk 0:03:01]}
8... c5 {[%clk 0:02:37]} 9. dxc5 {[%clk 0:02:59.5]} 9... Qxd1 {[%clk 0:02:36.5]}
10. Rxd1 {[%clk 0:02:57]} 10... Nbd7 {[%clk 0:02:30.9]} 11. c6 {[%clk
0:02:54.5]} 11... Bxc6 {[%clk 0:02:30.5]} 12. Nd4 {[%clk 0:02:51.3]} 12... Bb7
{[%clk 0:02:29.9]} 13. a4 {[%clk 0:02:45.1]} 13... b4 {[%clk 0:02:28.8]} 14. Nb1
{[%clk 0:02:44.7]} 14... Nc5 {[%clk 0:02:27.6]} 15. Bc4 {[%clk 0:02:43.4]} 15...
Be7 {[%clk 0:02:25.3]} 16. Nd2 {[%clk 0:02:42.9]} 16... O-O {[%clk 0:02:21.9]}
17. b3 {[%clk 0:02:35]} 17... Ng4 {[%clk 0:01:49.8]} 18. N2f3 {[%clk 0:02:29]}
18... Ne4 {[%clk 0:01:45.6]} 19. Rf1 {[%clk 0:02:24.5]} 19... Bf6 {[%clk
0:01:27.5]} 20. h3 {[%clk 0:02:22]} 20... Ne5 {[%clk 0:01:26.7]} 21. Nxe5 {[%clk
0:02:21.6]} 21... Bxe5 {[%clk 0:01:27.6]} 22. Bb2 {[%clk 0:02:16]} 22... Rac8
{[%clk 0:01:25.1]} 23. Rfc1 {[%clk 0:02:06.7]} 23... Nd2 {[%clk 0:01:22]} 24. a5
{[%clk 0:01:26.6]} 24... Nxc4 {[%clk 0:00:58.9]} 25. bxc4 {[%clk 0:01:23.3]}
25... Rc7 {[%clk 0:00:56.5]} 26. Nxe6 {[%clk 0:01:10.5]} 26... Bxb2 {[%clk
0:00:55.4]} 27. Nxc7 {[%clk 0:01:09.8]} 27... Bxa1 {[%clk 0:00:55.6]} 28. Rxa1
{[%clk 0:01:09.4]} 28... Rc8 {[%clk 0:00:55.3]} 29. Nd5 {[%clk 0:01:08.7]} 29...
Rxc4 {[%clk 0:00:49.4]} 30. Nb6 {[%clk 0:01:06.7]} 30... Rc3 {[%clk 0:00:47]}
31. Rb1 {[%clk 0:01:05.8]} 31... b3 {[%clk 0:00:45.8]} 32. Na4 {[%clk
0:01:04.1]} 32... Rc4 {[%clk 0:00:39]} 33. Rxb3 {[%clk 0:01:03.1]} 33... Rxa4
{[%clk 0:00:38.7]} 34. Rxb7 {[%clk 0:01:02.3]} 34... g6 {[%clk 0:00:39]} 35. g4
{[%clk 0:01:00.8]} 35... Rxa5 {[%clk 0:00:37]} 36. Kg2 {[%clk 0:01:00.7]} 36...
Ra2 {[%clk 0:00:36.1]} 37. Ra7 {[%clk 0:01:00.3]} 37... Kg7 {[%clk 0:00:35.7]}
38. g5 {[%clk 0:00:57.9]} 38... a5 {[%clk 0:00:30.4]} 39. h4 {[%clk 0:00:57.1]}
39... a4 {[%clk 0:00:28.9]} 40. Ra8 {[%clk 0:00:56.4]} 40... a3 {[%clk
0:00:27.9]} 41. Kg3 {[%clk 0:00:55.2]} 41... Ra1 {[%clk 0:00:28.2]} 42. Kg2
{[%clk 0:00:54.6]} 42... Ra2 {[%clk 0:00:26.3]} 43. Kg3 {[%clk 0:00:54.4]} 43...
Ra1 {[%clk 0:00:26.6]} 44. Kg2 {[%clk 0:00:54.3]} 44... Ra2 {[%clk 0:00:27]}
1/2-1/2

[Event "*** Titled Tuesday Blitz"]
[Site "Chess.com"]
[Date "2021.03.30"]
[Round "6"]
[White "KrolPawel92OnTwitch"]
[Black "superchess02"]
[Result "0-1"]
[WhiteElo "2621"]
[BlackElo "2813"]
[TimeControl "180+1"]
[EndTime "11:05:37 PDT"]
[Termination "superchess02 won by resignation"]

1. e4 {[%clk 0:03:00.9]} 1... a6 {[%clk 0:03:00.1]} 2. d4 {[%clk 0:03:00.9]}
2... b5 {[%clk 0:02:59.9]} 3. Bd3 {[%clk 0:03:00.5]} 3... Bb7 {[%clk 0:03:00.2]}
4. Ne2 {[%clk 0:03:00.6]} 4... e6 {[%clk 0:03:00.3]} 5. O-O {[%clk 0:03:00.2]}
5... c5 {[%clk 0:03:00.6]} 6. c3 {[%clk 0:03:00.6]} 6... Nf6 {[%clk 0:02:59.8]}
7. e5 {[%clk 0:02:59.5]} 7... Nd5 {[%clk 0:03:00.1]} 8. f4 {[%clk 0:02:59.7]}
8... Nc6 {[%clk 0:02:59.8]} 9. f5 {[%clk 0:03:00]} 9... cxd4 {[%clk 0:02:58.3]}
10. cxd4 {[%clk 0:03:00.5]} 10... Qb6 {[%clk 0:02:58.7]} 11. Kh1 {[%clk
0:03:00.7]} 11... O-O-O {[%clk 0:02:50.3]} 12. Nbc3 {[%clk 0:02:56.8]} 12...
Nxd4 {[%clk 0:02:42.2]} 13. Nxd5 {[%clk 0:02:48.3]} 13... Bxd5 {[%clk
0:02:37.1]} 14. Be3 {[%clk 0:02:47.6]} 14... Qb7 {[%clk 0:02:18.4]} 15. Nxd4
{[%clk 0:02:30.4]} 15... Bxg2+ {[%clk 0:02:18.5]} 16. Kg1 {[%clk 0:02:30.9]}
16... Bxf1 {[%clk 0:02:19]} 17. Qxf1 {[%clk 0:02:31.8]} 17... Kb8 {[%clk
0:02:17.5]} 18. a4 {[%clk 0:02:29]} 18... Bc5 {[%clk 0:02:09.5]} 19. axb5 {[%clk
0:02:27.6]} 19... Qd5 {[%clk 0:02:09.5]} 20. Qf2 {[%clk 0:02:24.7]} 20... a5
{[%clk 0:02:05.3]} 21. Bf1 {[%clk 0:02:23.9]} 21... Bb6 {[%clk 0:01:56.5]} 22.
Bg2 {[%clk 0:02:22.5]} 22... Qc4 {[%clk 0:01:56.8]} 23. Rc1 {[%clk 0:02:13.4]}
23... Qb4 {[%clk 0:01:49.7]} 24. Nc6+ {[%clk 0:02:09.6]} 24... dxc6 {[%clk
0:01:50]} 25. Bxb6 {[%clk 0:02:10]} 25... Rd2 {[%clk 0:01:50.7]} 26. Ba7+ {[%clk
0:02:08.7]} 26... Kc8 {[%clk 0:01:50.6]} 27. Rxc6+ {[%clk 0:02:06.4]} 27... Kd7
{[%clk 0:01:51.2]} 28. Rc7+ {[%clk 0:01:43.5]} 28... Kd8 {[%clk 0:01:42.8]} 29.
Bb6 {[%clk 0:00:28.2]} 29... Rxf2 {[%clk 0:01:07.4]} 30. Rc4+ {[%clk 0:00:10]}
30... Ke7 {[%clk 0:00:59.5]} 31. Bc5+ {[%clk 0:00:07.4]} 31... Qxc5 {[%clk
0:00:52.3]} 32. Rxc5 {[%clk 0:00:08]} 32... Rxb2 {[%clk 0:00:52.9]} 33. Rc7+
{[%clk 0:00:08.3]} 33... Kd8 {[%clk 0:00:52.8]} 34. f6 {[%clk 0:00:08.9]} 34...
Kxc7 {[%clk 0:00:52]} 0-1

[Event "*** Titled Tuesday Blitz"]
[Site "Chess.com"]
[Date "2021.03.30"]
[Round "6"]
[White "woodhy"]
[Black "VladimirBugayev"]
[Result "1-0"]
[WhiteElo "2450"]
[BlackElo "2289"]
[TimeControl "180+1"]
[EndTime "11:05:37 PDT"]
[Termination "woodhy won on time"]

1. e4 {[%clk 0:02:59.6]} 1... c6 {[%clk 0:02:59.6]} 2. Nc3 {[%clk 0:02:58.5]}
2... d5 {[%clk 0:02:59.9]} 3. Nf3 {[%clk 0:02:58.4]} 3... dxe4 {[%clk
0:03:00.5]} 4. Nxe4 {[%clk 0:02:58.3]} 4... Nf6 {[%clk 0:03:00.2]} 5. Ng3 {[%clk
0:02:52.7]} 5... h5 {[%clk 0:02:57.6]} 6. h4 {[%clk 0:02:30.5]} 6... g6 {[%clk
0:02:55.5]} 7. d4 {[%clk 0:02:27.2]} 7... Bg4 {[%clk 0:02:53.9]} 8. Be2 {[%clk
0:02:23.4]} 8... Bg7 {[%clk 0:02:53.8]} 9. Be3 {[%clk 0:02:21.4]} 9... Nd5
{[%clk 0:02:32.6]} 10. Qd2 {[%clk 0:02:18.3]} 10... Nxe3 {[%clk 0:02:24.2]} 11.
fxe3 {[%clk 0:02:19.2]} 11... Qd6 {[%clk 0:01:42.7]} 12. Ne4 {[%clk 0:02:15]}
12... Qc7 {[%clk 0:01:42.3]} 13. O-O-O {[%clk 0:02:13.1]} 13... Nd7 {[%clk
0:01:42.4]} 14. Nfg5 {[%clk 0:02:09.3]} 14... Bf5 {[%clk 0:01:33.8]} 15. Rdf1
{[%clk 0:01:54.6]} 15... Rd8 {[%clk 0:00:51.6]} 16. Bc4 {[%clk 0:01:49.6]} 16...
e6 {[%clk 0:00:38.8]} 17. Nxf7 {[%clk 0:01:33.1]} 17... Kxf7 {[%clk 0:00:36.7]}
18. Ng5+ {[%clk 0:01:29.9]} 18... Ke7 {[%clk 0:00:36.7]} 19. e4 {[%clk
0:01:29.7]} 19... Ne5 {[%clk 0:00:24.1]} 20. Qb4+ {[%clk 0:01:11.3]} 20... c5
{[%clk 0:00:22.7]} 21. dxc5 {[%clk 0:01:04]} 21... Nxc4 {[%clk 0:00:19.7]} 22.
Qxc4 {[%clk 0:00:55.1]} 22... Qe5 {[%clk 0:00:19.5]} 23. Qb4 {[%clk 0:00:49]}
23... Rd4 {[%clk 0:00:17.7]} 24. Qa3 {[%clk 0:00:28.4]} 1-0

[Event "*** Titled Tuesday Blitz"]
[Site "Chess.com"]
[Date "2021.03.30"]
[Round "6"]
[White "szachuspl"]
[Black "kakorrhaphiophobie"]
[Result "1-0"]
[WhiteElo "2542"]
[BlackElo "2341"]
[TimeControl "180+1"]
[EndTime "11:05:38 PDT"]
[Termination "szachuspl won on time"]

1. d4 {[%clk 0:03:00.9]} 1... f5 {[%clk 0:02:57.5]} 2. h3 {[%clk 0:02:59.6]}
2... Nf6 {[%clk 0:02:46.2]} 3. g4 {[%clk 0:02:59.6]} 3... d5 {[%clk 0:02:46.7]}
4. g5 {[%clk 0:02:59.6]} 4... Ne4 {[%clk 0:02:46.5]} 5. Nf3 {[%clk 0:03:00.2]}
5... e6 {[%clk 0:02:42.1]} 6. Bf4 {[%clk 0:02:59.3]} 6... c5 {[%clk 0:02:38.2]}
7. e3 {[%clk 0:02:59]} 7... Nc6 {[%clk 0:02:37.7]} 8. c3 {[%clk 0:02:59]} 8...
Bd6 {[%clk 0:02:36.4]} 9. Bxd6 {[%clk 0:02:58.3]} 9... Qxd6 {[%clk 0:02:37.3]}
10. Nbd2 {[%clk 0:02:58.2]} 10... Bd7 {[%clk 0:02:23.4]} 11. h4 {[%clk
0:02:54.7]} 11... e5 {[%clk 0:02:15.2]} 12. dxe5 {[%clk 0:02:53.6]} 12... Nxe5
{[%clk 0:02:15]} 13. Nxe5 {[%clk 0:02:54]} 13... Qxe5 {[%clk 0:02:15.4]} 14. Nf3
{[%clk 0:02:53.7]} 14... Qe6 {[%clk 0:02:08.8]} 15. Be2 {[%clk 0:02:51.7]} 15...
Bc6 {[%clk 0:02:05.1]} 16. Qc2 {[%clk 0:02:40.2]} 16... O-O-O {[%clk 0:02:00.5]}
17. b4 {[%clk 0:02:31.6]} 17... f4 {[%clk 0:01:28.9]} 18. bxc5 {[%clk
0:02:27.8]} 18... fxe3 {[%clk 0:01:28.6]} 19. fxe3 {[%clk 0:02:28.1]} 19... Ng3
{[%clk 0:01:28.1]} 20. Rh2 {[%clk 0:02:24.7]} 20... Qxe3 {[%clk 0:01:23.9]} 21.
Qd2 {[%clk 0:02:15.6]} 21... Qxc5 {[%clk 0:01:19.8]} 22. Nd4 {[%clk 0:02:12.7]}
22... Rde8 {[%clk 0:01:09.3]} 23. O-O-O {[%clk 0:02:06.7]} 23... Ne4 {[%clk
0:01:05.9]} 24. Qc2 {[%clk 0:01:51.2]} 24... Nxc3 {[%clk 0:00:53]} 25. Rd3
{[%clk 0:01:51.4]} 25... Nxe2+ {[%clk 0:00:39.2]} 26. Rxe2 {[%clk 0:01:47.7]}
26... Qxc2+ {[%clk 0:00:39.1]} 27. Rxc2 {[%clk 0:01:47.4]} 27... Kd7 {[%clk
0:00:35.4]} 28. Rf2 {[%clk 0:01:41.2]} 28... Rhf8 {[%clk 0:00:34.5]} 29. Rdf3
{[%clk 0:01:40.5]} 29... Rxf3 {[%clk 0:00:32.6]} 30. Rxf3 {[%clk 0:01:40.9]}
30... g6 {[%clk 0:00:30.9]} 31. Kd2 {[%clk 0:01:39.3]} 31... Kd6 {[%clk
0:00:28.4]} 32. Rf6+ {[%clk 0:01:38]} 32... Kc5 {[%clk 0:00:26]} 33. Ne6+ {[%clk
0:01:32.2]} 33... Kc4 {[%clk 0:00:22.3]} 34. Rf4+ {[%clk 0:01:30.6]} 34... d4
{[%clk 0:00:20.5]} 35. Rxd4+ {[%clk 0:01:27.7]} 35... Kb5 {[%clk 0:00:21]} 36.
Nc7+ {[%clk 0:01:27]} 36... Kc5 {[%clk 0:00:21.6]} 37. Nxe8 {[%clk 0:01:19.9]}
37... Kxd4 {[%clk 0:00:21.9]} 38. Nf6 {[%clk 0:01:20.4]} 38... Kc4 {[%clk
0:00:14.6]} 39. Nxh7 {[%clk 0:01:20.1]} 39... Kb4 {[%clk 0:00:15.2]} 40. Nf6
{[%clk 0:01:15.9]} 40... Ka3 {[%clk 0:00:14.1]} 41. h5 {[%clk 0:01:14.7]} 41...
gxh5 {[%clk 0:00:15]} 42. g6 {[%clk 0:01:15.1]} 42... Bb5 {[%clk 0:00:13.3]} 43.
Kc3 {[%clk 0:01:15.3]} 1-0

[Event "*** Titled Tuesday Blitz"]
[Site "Chess.com"]
[Date "2021.03.30"]
[Round "6"]
[White "LawrenceTrent"]
[Black "Taktikmonster"]
[Result "1-0"]
[WhiteElo "2562"]
[BlackElo "2370"]
[TimeControl "180+1"]
[EndTime "11:05:41 PDT"]
[Termination "LawrenceTrent won by checkmate"]

1. e4 {[%clk 0:03:00.4]} 1... c5 {[%clk 0:02:52.9]} 2. b3 {[%clk 0:02:59.9]}
2... Nc6 {[%clk 0:02:51.5]} 3. Bb2 {[%clk 0:02:59.4]} 3... e6 {[%clk 0:02:51.5]}
4. Bb5 {[%clk 0:02:57.2]} 4... d5 {[%clk 0:02:49.2]} 5. Nf3 {[%clk 0:02:53.5]}
5... Nf6 {[%clk 0:02:47.9]} 6. exd5 {[%clk 0:02:44.2]} 6... exd5 {[%clk
0:02:48.8]} 7. O-O {[%clk 0:02:42]} 7... Be7 {[%clk 0:02:44.1]} 8. d4 {[%clk
0:02:41.1]} 8... cxd4 {[%clk 0:02:33.6]} 9. Nxd4 {[%clk 0:02:41]} 9... Bd7
{[%clk 0:02:34.3]} 10. Bxc6 {[%clk 0:02:31.2]} 10... bxc6 {[%clk 0:02:35.2]} 11.
Qf3 {[%clk 0:02:30]} 11... Bg4 {[%clk 0:02:16]} 12. Qd3 {[%clk 0:02:17.4]} 12...
Qd7 {[%clk 0:02:09.7]} 13. Re1 {[%clk 0:02:12.3]} 13... O-O {[%clk 0:02:08.7]}
14. Nxc6 {[%clk 0:02:10.5]} 14... Bd6 {[%clk 0:01:40.6]} 15. Ne5 {[%clk
0:02:01.7]} 15... Bxe5 {[%clk 0:01:22.2]} 16. Bxe5 {[%clk 0:02:00.6]} 16... Bf5
{[%clk 0:01:19.4]} 17. Qd2 {[%clk 0:01:56.1]} 17... Ne4 {[%clk 0:01:18.4]} 18.
Qd4 {[%clk 0:01:51.6]} 18... f6 {[%clk 0:01:13.2]} 19. Bf4 {[%clk 0:01:50.6]}
19... Rac8 {[%clk 0:01:11]} 20. Nd2 {[%clk 0:01:48.9]} 20... Nxd2 {[%clk
0:00:57.3]} 21. Bxd2 {[%clk 0:01:45.8]} 21... Rxc2 {[%clk 0:00:57.1]} 22. Bb4
{[%clk 0:01:43.9]} 22... Rfc8 {[%clk 0:00:50]} 23. h3 {[%clk 0:01:36.5]} 23...
Qf7 {[%clk 0:00:20.5]} 24. Re3 {[%clk 0:01:25.6]} 24... Rc1+ {[%clk 0:00:17.8]}
25. Rxc1 {[%clk 0:01:24.7]} 25... Rxc1+ {[%clk 0:00:18.7]} 26. Kh2 {[%clk
0:01:25.5]} 26... h5 {[%clk 0:00:11.7]} 27. Rg3 {[%clk 0:01:21.7]} 27... Rc2
{[%clk 0:00:08.2]} 28. a4 {[%clk 0:01:17.3]} 28... Be4 {[%clk 0:00:07.7]} 29. h4
{[%clk 0:01:05.6]} 29... Qc7 {[%clk 0:00:03.9]} 30. Bd2 {[%clk 0:00:45.6]} 30...
Qe5 {[%clk 0:00:03.5]} 31. Qxa7 {[%clk 0:00:41.4]} 31... Rxd2 {[%clk 0:00:02.9]}
32. Qxg7# {[%clk 0:00:40.6]} 1-0

[Event "*** Titled Tuesday Blitz"]
[Site "Chess.com"]
[Date "2021.03.30"]
[Round "6"]
[White "davidkalashian"]
[Black "NoGuru"]
[Result "1-0"]
[WhiteElo "2537"]
[BlackElo "2333"]
[TimeControl "180+1"]
[EndTime "11:05:42 PDT"]
[Termination "davidkalashian won by checkmate"]

1. e4 {[%clk 0:02:51.1]} 1... c6 {[%clk 0:02:59.8]} 2. d4 {[%clk 0:02:50.5]}
2... d5 {[%clk 0:03:00.1]} 3. Nc3 {[%clk 0:02:51.4]} 3... dxe4 {[%clk 0:03:00]}
4. Nxe4 {[%clk 0:02:49.2]} 4... Bf5 {[%clk 0:03:00.6]} 5. Ng3 {[%clk 0:02:48.8]}
5... Bg6 {[%clk 0:03:00.8]} 6. h4 {[%clk 0:02:49.3]} 6... h6 {[%clk 0:03:01.2]}
7. Nf3 {[%clk 0:02:48.9]} 7... Nd7 {[%clk 0:03:01.7]} 8. h5 {[%clk 0:02:43.3]}
8... Bh7 {[%clk 0:03:01.7]} 9. Bd3 {[%clk 0:02:43.3]} 9... Bxd3 {[%clk
0:03:02.2]} 10. Qxd3 {[%clk 0:02:41.9]} 10... e6 {[%clk 0:03:02.1]} 11. Bf4
{[%clk 0:02:40.1]} 11... Qa5+ {[%clk 0:03:02]} 12. Bd2 {[%clk 0:02:38.1]} 12...
Bb4 {[%clk 0:03:01.4]} 13. c3 {[%clk 0:02:32.7]} 13... Be7 {[%clk 0:03:00.9]}
14. c4 {[%clk 0:02:32.3]} 14... Qc7 {[%clk 0:03:00.9]} 15. O-O-O {[%clk
0:02:31.3]} 15... Ngf6 {[%clk 0:02:59.1]} 16. Ne4 {[%clk 0:02:30.2]} 16... c5
{[%clk 0:02:44.7]} 17. Bc3 {[%clk 0:02:23.7]} 17... cxd4 {[%clk 0:02:41.1]} 18.
Nxf6+ {[%clk 0:02:18.5]} 18... Bxf6 {[%clk 0:02:37.2]} 19. Bxd4 {[%clk
0:02:07.8]} 19... Rc8 {[%clk 0:02:28.2]} 20. Bxf6 {[%clk 0:01:20.4]} 20... Nxf6
{[%clk 0:02:20.6]} 21. Rh4 {[%clk 0:01:19.7]} 21... O-O {[%clk 0:02:17.9]} 22.
Kb1 {[%clk 0:01:17.6]} 22... Rfd8 {[%clk 0:02:17.5]} 23. Qe2 {[%clk 0:01:13.5]}
23... Rxd1+ {[%clk 0:02:15.7]} 24. Qxd1 {[%clk 0:01:14.4]} 24... Qc5 {[%clk
0:02:14.8]} 25. Rd4 {[%clk 0:00:57.5]} 25... Qf5+ {[%clk 0:02:01]} 26. Ka1
{[%clk 0:00:56.3]} 26... Qxh5 {[%clk 0:01:27.3]} 27. a3 {[%clk 0:00:51.1]} 27...
Qc5 {[%clk 0:01:19.6]} 28. Qd3 {[%clk 0:00:44.5]} 28... g6 {[%clk 0:01:10.3]}
29. Qe3 {[%clk 0:00:41.7]} 29... Kg7 {[%clk 0:01:05.6]} 30. Ne5 {[%clk
0:00:41.3]} 30... Ng8 {[%clk 0:00:50.3]} 31. Rd7 {[%clk 0:00:34.8]} 31... Qxe3
{[%clk 0:00:22.8]} 32. Rxf7+ {[%clk 0:00:33.4]} 32... Kh8 {[%clk 0:00:22]} 33.
Nxg6# {[%clk 0:00:32.9]} 1-0

[Event "*** Titled Tuesday Blitz"]
[Site "Chess.com"]
[Date "2021.03.30"]
[Round "6"]
[White "grandcoach"]
[Black "canary2016"]
[Result "0-1"]
[WhiteElo "2258"]
[BlackElo "2031"]
[TimeControl "180+1"]
[EndTime "11:05:45 PDT"]
[Termination "canary2016 won on time"]

1. e4 {[%clk 0:03:00.9]} 1... c6 {[%clk 0:02:57.8]} 2. d4 {[%clk 0:02:59.9]}
2... d5 {[%clk 0:02:56.8]} 3. e5 {[%clk 0:03:00.5]} 3... Bf5 {[%clk 0:02:56.1]}
4. Nf3 {[%clk 0:03:00.8]} 4... e6 {[%clk 0:02:55.2]} 5. Be2 {[%clk 0:03:01.2]}
5... Nd7 {[%clk 0:02:55.2]} 6. O-O {[%clk 0:03:01.6]} 6... Ne7 {[%clk
0:02:52.7]} 7. Nbd2 {[%clk 0:03:01.5]} 7... c5 {[%clk 0:02:44.7]} 8. c4 {[%clk
0:03:00.8]} 8... Nc6 {[%clk 0:02:34.3]} 9. cxd5 {[%clk 0:03:00.3]} 9... exd5
{[%clk 0:02:33.4]} 10. Qb3 {[%clk 0:02:41.3]} 10... Nb6 {[%clk 0:02:25.5]} 11.
dxc5 {[%clk 0:02:19.5]} 11... Bxc5 {[%clk 0:02:23.5]} 12. Qb5 {[%clk 0:02:13]}
12... Qe7 {[%clk 0:02:15.3]} 13. Nb3 {[%clk 0:02:12.4]} 13... Bb4 {[%clk
0:02:02.9]} 14. Bg5 {[%clk 0:01:50.9]} 14... Qd7 {[%clk 0:01:54.4]} 15. Rfd1
{[%clk 0:01:28.5]} 15... O-O {[%clk 0:01:52]} 16. a3 {[%clk 0:01:25.8]} 16...
Be7 {[%clk 0:01:50.8]} 17. Nc5 {[%clk 0:01:21.3]} 17... Bxc5 {[%clk 0:01:46.9]}
18. Qxc5 {[%clk 0:01:22.2]} 18... Rac8 {[%clk 0:01:45.8]} 19. a4 {[%clk
0:00:52.3]} 19... Be6 {[%clk 0:01:27]} 20. a5 {[%clk 0:00:49.4]} 20... Na8
{[%clk 0:01:24.8]} 21. Qd6 {[%clk 0:00:30.1]} 21... Qxd6 {[%clk 0:01:07.1]} 22.
exd6 {[%clk 0:00:31]} 22... f6 {[%clk 0:01:07]} 23. Bf4 {[%clk 0:00:27.1]} 23...
Rfd8 {[%clk 0:01:06.4]} 24. Nd4 {[%clk 0:00:21.7]} 24... Bf7 {[%clk 0:01:03]}
25. Bg4 {[%clk 0:00:19.3]} 25... Nxd4 {[%clk 0:00:56.4]} 26. Rxd4 {[%clk
0:00:17.8]} 26... Rc6 {[%clk 0:00:55.9]} 27. Re1 {[%clk 0:00:13.2]} 27... Rc2
{[%clk 0:00:52.9]} 28. b4 {[%clk 0:00:11.4]} 28... b6 {[%clk 0:00:41.7]} 29. h3
{[%clk 0:00:10]} 29... bxa5 {[%clk 0:00:41.1]} 30. bxa5 {[%clk 0:00:09.5]} 30...
Ra2 {[%clk 0:00:40.4]} 31. Re7 {[%clk 0:00:05.3]} 31... Rxa5 {[%clk 0:00:38.8]}
0-1

[Event "*** Titled Tuesday Blitz"]
[Site "Chess.com"]
[Date "2021.03.30"]
[Round "6"]
[White "Federtiu"]
[Black "liczner"]
[Result "0-1"]
[WhiteElo "2661"]
[BlackElo "2817"]
[TimeControl "180+1"]
[EndTime "11:05:46 PDT"]
[Termination "liczner won by resignation"]

1. e4 {[%clk 0:03:00.9]} 1... c6 {[%clk 0:02:59.7]} 2. d4 {[%clk 0:02:58.1]}
2... d5 {[%clk 0:03:00.6]} 3. e5 {[%clk 0:02:58.2]} 3... Bf5 {[%clk 0:03:00.3]}
4. Nf3 {[%clk 0:02:58.1]} 4... e6 {[%clk 0:03:00.4]} 5. Be2 {[%clk 0:02:58.3]}
5... Ne7 {[%clk 0:03:00.7]} 6. O-O {[%clk 0:02:58.1]} 6... Bg6 {[%clk
0:03:01.3]} 7. a4 {[%clk 0:02:57.3]} 7... c5 {[%clk 0:02:59.1]} 8. a5 {[%clk
0:02:52.5]} 8... a6 {[%clk 0:02:56.8]} 9. c4 {[%clk 0:02:48.5]} 9... cxd4 {[%clk
0:02:38.1]} 10. Nxd4 {[%clk 0:02:45.7]} 10... Nec6 {[%clk 0:02:34.3]} 11. cxd5
{[%clk 0:02:40.2]} 11... Qxd5 {[%clk 0:02:32.4]} 12. Ra4 {[%clk 0:01:58.6]}
12... Bxb1 {[%clk 0:02:18.8]} 13. Bf3 {[%clk 0:01:26]} 13... Qd7 {[%clk
0:02:10.9]} 14. Bf4 {[%clk 0:00:39]} 14... Bg6 {[%clk 0:01:58.3]} 15. Qb3 {[%clk
0:00:24.4]} 15... Nxd4 {[%clk 0:00:48.2]} 16. Rxd4 {[%clk 0:00:12.4]} 16... Qxd4
{[%clk 0:00:49.1]} 17. Rd1 {[%clk 0:00:12]} 17... Qb4 {[%clk 0:00:37.1]} 18. Bg5
{[%clk 0:00:06.1]} 18... Nc6 {[%clk 0:00:23.2]} 19. Bxc6+ {[%clk 0:00:02]} 19...
bxc6 {[%clk 0:00:24.1]} 20. Qf3 {[%clk 0:00:02.5]} 20... Be4 {[%clk 0:00:16.3]}
21. Qe3 {[%clk 0:00:01.3]} 0-1

[Event "*** Titled Tuesday Blitz"]
[Site "Chess.com"]
[Date "2021.03.30"]
[Round "6"]
[White "I_Enchev"]
[Black "Gabix_94"]
[Result "1-0"]
[WhiteElo "2553"]
[BlackElo "2769"]
[TimeControl "180+1"]
[EndTime "11:05:48 PDT"]
[Termination "I_Enchev won by checkmate"]

1. d4 {[%clk 0:03:00.9]} 1... Nf6 {[%clk 0:02:59.8]} 2. c4 {[%clk 0:03:00.6]}
2... c5 {[%clk 0:03:00.3]} 3. d5 {[%clk 0:03:00.2]} 3... g6 {[%clk 0:03:00.5]}
4. Nc3 {[%clk 0:03:00]} 4... Bg7 {[%clk 0:03:00.8]} 5. e4 {[%clk 0:03:00.5]}
5... d6 {[%clk 0:03:01]} 6. f3 {[%clk 0:03:00.9]} 6... O-O {[%clk 0:03:01.4]} 7.
Nge2 {[%clk 0:03:01.4]} 7... e6 {[%clk 0:03:01.9]} 8. Ng3 {[%clk 0:02:58.8]}
8... exd5 {[%clk 0:03:01.9]} 9. cxd5 {[%clk 0:02:59.7]} 9... a6 {[%clk
0:03:02.4]} 10. a4 {[%clk 0:02:58.9]} 10... h5 {[%clk 0:03:02.8]} 11. Bg5 {[%clk
0:02:58.2]} 11... Qe8 {[%clk 0:03:03]} 12. Be2 {[%clk 0:02:53.7]} 12... Nh7
{[%clk 0:03:02.9]} 13. Be3 {[%clk 0:02:43.5]} 13... h4 {[%clk 0:03:02.1]} 14.
Nf1 {[%clk 0:02:42.9]} 14... Nd7 {[%clk 0:03:00.8]} 15. Nd2 {[%clk 0:02:41.4]}
15... f5 {[%clk 0:03:00.6]} 16. O-O {[%clk 0:02:38.9]} 16... f4 {[%clk
0:02:58.9]} 17. Bf2 {[%clk 0:02:37.6]} 17... h3 {[%clk 0:02:59.5]} 18. g4 {[%clk
0:02:13.9]} 18... Ne5 {[%clk 0:02:38.3]} 19. Nc4 {[%clk 0:02:09.7]} 19... Nxc4
{[%clk 0:02:35.8]} 20. Bxc4 {[%clk 0:02:10.6]} 20... Ng5 {[%clk 0:02:36]} 21. a5
{[%clk 0:02:07.1]} 21... Bd7 {[%clk 0:02:34.3]} 22. Kh1 {[%clk 0:02:04.7]} 22...
Rb8 {[%clk 0:02:31.3]} 23. Na4 {[%clk 0:01:54.1]} 23... Nxe4 {[%clk 0:02:24.8]}
24. Nb6 {[%clk 0:01:47.1]} 24... Nxf2+ {[%clk 0:02:16.2]} 25. Rxf2 {[%clk
0:01:48]} 25... Bb5 {[%clk 0:02:14.5]} 26. Qf1 {[%clk 0:01:38.9]} 26... Bd4
{[%clk 0:02:09.1]} 27. Re2 {[%clk 0:01:35.4]} 27... Bxc4 {[%clk 0:02:07.8]} 28.
Nxc4 {[%clk 0:01:31.5]} 28... Qd7 {[%clk 0:02:05.2]} 29. Re6 {[%clk 0:01:24.1]}
29... Kg7 {[%clk 0:01:58.4]} 30. Rae1 {[%clk 0:01:21.6]} 30... Rbe8 {[%clk
0:01:54.8]} 31. Qxh3 {[%clk 0:01:14.7]} 31... Rxe6 {[%clk 0:01:42.4]} 32. Rxe6
{[%clk 0:01:15.6]} 32... Rh8 {[%clk 0:01:41.1]} 33. Qf1 {[%clk 0:01:14.5]} 33...
Qb5 {[%clk 0:01:38.8]} 34. Qd3 {[%clk 0:01:09.9]} 34... Kf8 {[%clk 0:01:15.5]}
35. Qxg6 {[%clk 0:01:07.3]} 35... Qa4 {[%clk 0:01:11.1]} 36. Qf5+ {[%clk
0:01:03.4]} 36... Kg8 {[%clk 0:01:10]} 37. Rg6+ {[%clk 0:00:57.8]} 37... Bg7
{[%clk 0:01:09.9]} 38. Qe6+ {[%clk 0:00:41.9]} 38... Kh7 {[%clk 0:01:07.8]} 39.
Rg5 {[%clk 0:00:26.5]} 39... Qd1+ {[%clk 0:00:59.9]} 40. Kg2 {[%clk 0:00:25.7]}
40... Qc2+ {[%clk 0:00:56]} 41. Kh3 {[%clk 0:00:17.4]} 41... Qd3 {[%clk
0:00:54.7]} 42. Rh5+ {[%clk 0:00:16.6]} 42... Bh6 {[%clk 0:00:53.8]} 43. Rxh6+
{[%clk 0:00:16.1]} 43... Kg7 {[%clk 0:00:53.4]} 44. Qf6+ {[%clk 0:00:15.8]}
44... Kg8 {[%clk 0:00:53.8]} 45. Rxh8# {[%clk 0:00:16.2]} 1-0